Cogmind - Beta 14 @@@ ROGUE MODE // 2024.08.14 @ 19:26:59 Player: UnifiBg Result: Destroyed by 7X-ZRS(R) with Subdweller Laser Performance ------------- Evolutions (0) 0 Regions Visited (2) 400 Robots Destroyed (29) 145 Value Destroyed (640) 640 Prototype IDs (11) 220 Alien Tech Used (0) 0 Bonus (0) 0 TOTAL SCORE: 1405 Bonus ------- None Cogmind --------- Core Integrity 0/250 Matter 297/300 Energy 249/250 System Corruption 0% Temperature Cool (16) Movement Rolling (95) Ox1 Location -10/Subcaves Parts ------- > --- POWER (1) -------- Ion Engine > --- PROPULSION (2) --- Wheel Wheel > --- UTILITY (2) ------ Medium Storage Unit Signal Interpreter > --- WEAPON (2) ------- Subdweller Laser Battle Rifle > --- INVENTORY (10) --- High-capacity Storage Unit High-capacity Battery (250) Medium Matter Pod (100) Subdweller Optics Light Armor Plating Scrap Shield Grenade Launcher Peak State ------------ > --- POWER ------------ Light Ion Engine > --- PROPULSION ------- Light Treads Wheel > --- UTILITY ---------- Medium Storage Unit Signal Interpreter > --- WEAPON ----------- Subdweller Laser Battle Rifle > --- INVENTORY -------- Ion Engine Wheel High-capacity Storage Unit High-capacity Battery Medium Matter Pod Subdweller Optics Light Armor Plating Scrap Shield Grenade Launcher [Rating: 10] Favorites ----------- Power Light Ion Engine Engine Light Ion Engine Propulsion Wheel Treads Light Treads Wheel Wheel Utility Medium Storage Unit Device Seismic Detector Storage Medium Storage Unit Processor Signal Interpreter Protection Light Armor Plating Weapon Battle Rifle Energy Gun Subdweller Laser Ballistic Gun Battle Rifle Launcher Grenade Launcher Build | -11 -10 -10 ------- Run | Yrd Mat Sub Slots Evolved . | . . . Power . | . . . Propulsion . | . . . Utility . | . . . Weapon . | . . . Parts Attached 52 | 10 28 14 Power 9 | 2 5 2 Engine 9 | 2 5 2 Core . | . . . Reactor . | . . . Propulsion 10 | 4 3 3 Treads 1 | . . 1 Leg . | . . . Wheel 9 | 4 3 2 Hover . | . . . Flight . | . . . Utility 14 | 2 10 2 Device 4 | 1 3 . Storage 6 | 1 4 1 Processor 1 | . . 1 Hackware . | . . . Protection 3 | . 3 . Artifact . | . . . Weapon 19 | 2 10 7 Energy Gun 9 | 1 5 3 Energy Cannon . | . . . Ballistic Gun 7 | 1 3 3 Ballistic Cannon . | . . . Launcher 3 | . 2 1 Special Weapon . | . . . Impact Weapon . | . . . Slashing Weapon . | . . . Piercing Weapon . | . . . Special Melee Weapon . | . . . Unidentified Prototypes . | . . . Parts Lost 7 | . 3 4 Power 1 | . . 1 Propulsion 1 | . . 1 Utility 2 | . 1 1 Weapon 3 | . 2 1 Highest Loss Streak 2 | . 2 1 To Critical Strikes . | . . . Average Slot Usage (%) 99 | . 99 99 Engine 14 | . 14 14 Treads 4 | . . 9 Wheel 23 | . 28 18 Device 6 | . 11 . Storage 14 | . 14 14 Processor 5 | . . 12 Protection 1 | . 2 . Energy Gun 12 | . 12 12 Ballistic Gun 13 | . 14 13 Launcher 1 | . 1 1 Peak Build Rating 10 | 7 9 10 Average Rating 8 | 5 8 9 On Entrance 5 | . 7 8 Naked Turns . | . . . Heaviest Build 22 | 13 22 22 Greatest Support 26 | 26 20 20 Greatest Overweight (x) 2 | . 1 2 Average Overweight (x) . | . . . Largest Inventory Capacity 20 | 8 20 10 Average Capacity 9 | 7 10 10 Most Carried 11 | 8 11 10 Average Carried 9 | 3 9 9 Final Capacity 10 | 8 10 10 Final Carried 10 | 8 10 8 Class Distribution -------------------- 68% | Mutant 31% | Scavenger-Mutant Dominant Class ---------------- Mutant | -10/Materials Mutant | -10/Subcaves Resources | -11 -10 -10 ----------- Run | Yrd Mat Sub Matter Collected 1065 | 320 499 246 Remotely . | . . . Salvage Created 1113 | 196 762 155 Parts 68 | 14 41 13 Haulers Intercepted . | . . . Recyclers Shooed 3 | 1 2 . Parts Field Recycled . | . . . Retrieved Matter . | . . . Parts Self-Destructed . | . . . Prevented . | . . . Kills | -11 -10 -10 ------- Run | Yrd Mat Sub Combat Hostiles Destroyed 17 | . 12 5 Guns 11 | . 10 1 AOE 6 | . 2 4 Classes Destroyed 7 | 3 3 1 Worker 4 | 2 2 . Tunneler 3 | 2 1 . Recycler 4 | 1 3 . Watcher 1 | . 1 . Swarmer 3 | . 3 . Grunt 9 | . 9 . Subdweller 5 | . . 5 Best Kill Streak 4 | 2 4 4 Combat Bots Only 4 | . 2 4 Max Kills in Single Turn 2 | 1 1 2 Gunslinging . | . . . Exploded 2 | . 1 2 Melee . | . . . Uniques/NPCs Destroyed . | . . . Combat | -11 -10 -10 -------- Run | Yrd Mat Sub Hostile Shots Fired 89 | . 63 26 Missed 16 | . 10 6 Damage Taken 1208 | . 658 550 Core 252 | . 151 101 Absorbed by Shields . | . . . Core Remaining (%) 100 | 100 . . Volleys Fired 98 | 10 74 14 Largest 2 | 2 2 2 Hottest 85 | 60 85 85 Shots Fired 175 | 20 133 22 Gun 164 | 20 127 17 Cannon . | . . . Launcher 11 | . 6 5 Special . | . . . Kinetic 95 | 10 77 8 Thermal 69 | 10 50 9 Explosive 11 | . 6 5 Electromagnetic . | . . . Robot Hit Streak 11 | 6 11 4 Robot Miss Streak 11 | 3 11 1 Penetration Max . | . . . Secondary Targets . | . . . Shots Hit Robots 92 | 12 71 9 Core Hits 52 | 6 38 8 Critical Kills . | . . . Critical Parts Destroyed . | . . . Critical Strikes 3 | . 2 1 Burn 2 | . 2 . Destroy 1 | . . 1 Melee Attacks . | . . . Impact . | . . . Slashing . | . . . Piercing . | . . . Sneak Attacks . | . . . Combat Hostiles . | . . . Follow-up Attacks . | . . . Damage Inflicted 1495 | 131 979 385 Guns 1079 | 131 800 148 Cannons . | . . . Explosions 416 | . 179 237 Melee . | . . . Ramming . | . . . Kinetic 610 | 73 486 51 Thermal 469 | 58 314 97 Explosive 416 | . 179 237 Electromagnetic . | . . . Impact . | . . . Slashing . | . . . Piercing . | . . . Highest Corruption . | . . . Average Corruption . | . . . Corruption Purged . | . . . Corruption Blocked . | . . . Overload Shots . | . . . Overflow Damage . | . . . Projectiles . | . . . Explosions . | . . . Melee . | . . . Knockbacks . | . . . Impact . | . . . Kinetic . | . . . Secondary . | . . . Self-Inflicted Damage 35 | . 35 . Shots 2 | . 2 . Rammed . | . . . Targets Rammed . | . . . Kicked . | . . . Crushed . | . . . Highest Temperature 231 | . 231 22 Average Temperature 63 | . 66 7 Received Heat Transfer 372 | . 291 81 Effects 1 | . 1 . Energy Bleed 1 | . 1 . Siege Activations . | . . . Robots Corrupted . | . . . Combat Hostiles . | . . . Parts Fried . | . . . Impact Corruptions . | . . . Robots Melted . | . . . Combat Hostiles . | . . . Parts Melted 2 | . 2 . Heat Transferred 1335 | 125 1073 137 Parts Sabotaged . | . . . Parts Stolen . | . . . Parts Stripped . | . . . Power Chain Reactions . | . . . Alert | -11 -10 -10 ------- Run | Yrd Mat Sub Peak Influence 290 | 25 290 . Initial 16 | . 16 . Average 80 | 7 89 . Maximum Alert Level 1 | . 1 . Low Security (%) 85 | 100 84 . Level 1 14 | . 15 . Level 2 . | . . . Level 3 . | . . . Level 4 . | . . . Level 5 . | . . . High Security . | . . . Max Security . | . . . Squads Dispatched 2 | . 2 . Investigation . | . . . Extermination . | . . . Reinforcement 2 | . 2 . Assault . | . . . Garrison . | . . . Intercept . | . . . Searches Triggered . | . . . Construction Impeded . | . . . Haulers Reinforced . | . . . Active Scanning Responses . | . . . Cargo Convoy Interrupts . | . . . Stealth | -11 -10 -10 --------- Run | Yrd Mat Sub Distress Signals 1 | . 1 . Communications Jammed . | . . . Distress Signals . | . . . Times Spotted 41 | . 30 11 Peak Tracking Total 8 | . 3 8 Tactical Retreats 5 | . 5 . Traps | -11 -10 -10 ------- Run | Yrd Mat Sub Traps Triggered 2 | . . 2 Indirectly . | . . . Trap Hack Attempts . | . . . Triggered . | . . . Disarmed . | . . . Reprogrammed . | . . . Reused . | . . . Traps Extracted . | . . . Installed . | . . . Triggered . | . . . Machines | -11 -10 -10 ---------- Run | Yrd Mat Sub Machines Disabled . | . . . Max in Single Turn . | . . . Machines Repaired . | . . . Machines Dismantled . | . . . Machines Sabotaged . | . . . Overloaded Fab Kills . | . . . Hacking | -11 -10 -10 --------- Run | Yrd Mat Sub Machines Accessed 9 | . 6 3 Terminals 6 | . 6 . Fabricators . | . . . Repair Stations . | . . . Recycling Units . | . . . Scanalyzers . | . . . Garrison Access . | . . . Total Hacks 36 | . 24 12 Successful 28 | . 16 12 Failed 8 | . 8 . Catastrophic 1 | . 1 . Database Lockouts . | . . . Manual 24 | . 24 . Terminals 24 | . 24 . Fabricators . | . . . Repair Stations . | . . . Recycling Units . | . . . Scanalyzers . | . . . Garrison Access . | . . . Terminal Hacks 14 | . 2 12 Record 9 | . . 9 Open Door 1 | . . 1 Unreport Threat 2 | . 2 . Derelict Proto ID Bank 1 | . . 1 Release Object 1 | . . 1 Fabricator Hacks . | . . . Repair Station Hacks . | . . . Recycling Unit Hacks . | . . . Scanalyzer . | . . . Garrison Access Hacks . | . . . Unauthorized Hacks 14 | . 14 . Terminals 14 | . 14 . Track 3 | . 3 . Botnet 3 | . 3 . Operators 2 | . 2 . Skim 6 | . 6 . Fabricators . | . . . Repair Stations . | . . . Recycling Units . | . . . Scanalyzers . | . . . Garrison Access . | . . . Data Cores Recovered . | . . . Used . | . . . Hacking Detections 5 | . 5 . Full Trace Events . | . . . Feedback Events . | . . . Feedback Blocked . | . . . Robot Schematics Acquired . | . . . Robots Built . | . . . Authchips . | . . . Time . | . . . Total Robot Build Rating . | . . . Part Schematics Acquired . | . . . Parts Built . | . . . Authchips . | . . . Time . | . . . Total Part Build Rating . | . . . Parts Repaired . | . . . Time . | . . . Parts Recycled . | . . . Recycled Matter . | . . . Retrieved Matter . | . . . Retrieved Components . | . . . Parts Scanalyzed . | . . . Part Schematics Acquired . | . . . Parts Damaged . | . . . Bothacking | -11 -10 -10 ------------ Run | Yrd Mat Sub Used RIF Installer . | . . . Robots Hacked . | . . . Non-combat . | . . . Combat . | . . . Robot Hacks Applied . | . . . Relay Couplers Released . | . . . Fabnet Peak Effective % . | . . . Robots Rewired . | . . . Allies Hacked . | . . . Hacks Repelled . | . . . Allies | -11 -10 -10 -------- Run | Yrd Mat Sub Total Allies . | . . . Largest Group . | . . . Highest-Rated Group . | . . . Highest-Rated Ally . | . . . Total Orders . | . . . Ally Attacks . | . . . Total Damage . | . . . Kills . | . . . Allies Corrupted . | . . . Allies Melted . | . . . Intel | -11 -10 -10 ------- Run | Yrd Mat Sub Robot Analysis Total . | . . . Derelict Logs Recovered 1 | . . 1 Drone Launches . | . . . Drone Recoveries . | . . . Exploration | -11 -10 -10 ------------- Run | Yrd Mat Sub Turns Passed 2967 | 186 1472 1309 Spaces Moved 2537 | 156 1280 1101 Core 5 | 5 . . Treads 373 | . . 373 Legs . | . . . Wheels 2159 | 151 1280 728 Hover . | . . . Flight . | . . . Fastest Speed 50 | 50 80 80 Average Speed 95 | 85 80 113 Slowest Speed 160 | 100 95 160 Overloaded Moves . | . . . Propulsion Burnouts . | . . . Robots Hopped . | . . . Cave-ins Triggered . | . . . Exploration Rate (%) 50 | 7 100 44 Regions Visited 2 Branch Regions 1 Pre-discovered Areas 1 | . 1 . Known Exits Taken 1 | . 1 . Unknown Exits Taken 1 | 1 . . Scrap Searched 2 | . . 2 Spaces Dug . | . . . Terrain Destroyed 21 | . 18 3 Melee . | . . . Projectile . | . . . AOE 21 | . 18 3 Terrain Rammed . | . . . Walls Destroyed . | . . . Machines Disabled . | . . . Actions | -11 -10 -10 --------- Run | Yrd Mat Sub Total 2922 | 187 1594 1141 Wait 181 | . 181 . Move 2535 | 155 1279 1101 Hop . | . . . Pick Up 22 | 8 10 4 Fast Attach 15 | 8 6 1 Attach 4 | . 1 3 Detach 2 | 1 1 . Swap 33 | 2 21 10 Drop 31 | 3 21 7 Fire 98 | 10 74 14 Melee . | . . . Ram . | . . . Kick . | . . . Crush . | . . . Escape Stasis . | . . . Rewire . | . . . Trap . | . . . Miscellaneous 1 | . . 1 Route ------- -11/Scrapyard -10/Materials (discovered 5 exits: *Mat x3 / [*Min] / *Sub) -10/Subcaves (discovered 2 exits: *Mat x2) History --------- Turn | Location | Event 26 | -11/Scrapyard | Discovered new exit (range 16) 187 | -11/Scrapyard | Entered Materials 318 | -10/Materials | Build established: Mutant 594 | -10/Materials | Discovered new exit (range 10) 988 | -10/Materials | Core integrity fell below 50% 1117 | -10/Materials | Build established: Scavenger-Mutant 1136 | -10/Materials | Discovered new exit (range 10) 1269 | -10/Materials | Discovered new exit (range 12) 1344 | -10/Materials | Identified exit to Subcaves 1344 | -10/Materials | Identified exit to Materials 1408 | -10/Materials | Learned location of 1 exit from Recycling 1533 | -10/Materials | Learned 2 Storage zone layouts 1573 | -10/Materials | Learned Storage trap positions 1620 | -10/Materials | Build established: Mutant 1625 | -10/Materials | Learned 2 Storage zone layouts 1659 | -10/Materials | Entered Subcaves 1660 | -10/Subcaves | Identified exit to Materials 1728 | -10/Subcaves | Ambushed by swarm of Subdwellers 1729 | -10/Subcaves | Ambushed by Subdwellers from Twisted Machinery 1908 | -10/Subcaves | Shifting Twisted Machinery released Mak. Leg 1910 | -10/Subcaves | Shifting Twisted Machinery released Battle Cannon 1947 | -10/Subcaves | Disturbed a concealed Subdweller 1949 | -10/Subcaves | Core integrity fell below 20% 2358 | -10/Subcaves | Released subatomizers from SUBCON Basin 2613 | -10/Subcaves | Visited 4L-MR0's lab 2772 | -10/Subcaves | Learned Materials emergency access door positions 2849 | -10/Subcaves | Build established: Scavenger-Mutant 2968 | -10/Subcaves | Destroyed by 7X-ZRS(R) with Subdweller Laser Last Messages --------------- things went wrong. Still I'm glad they didn't listen, that way I'm not culpable for whatever they would've done with it. If we're lucky even some of the others got blasted, too. 02625_ 4L-MR0 mumbles: "I'm surprised some of them are even willing to come in here given their fear of my usual visitors." 02637_ 4L-MR0 mumbles: "Who knows where that last prototype ended up, probably tossed aside somewhere as if it were useless junk..." 02644_ Connecting with 4L-MR0's Prototype Logs... 02772_ Acquired derelict log, extracted data. Data stored: Materials emergency access points. 02789_ Acquired 10 matter. 02801_ Triggered Piercing Trap. 02801_ Spikes shoot up from the floor. 02801_ Critical hit (Impale). 02801_ Lgt. Ion Engine destroyed. 02869_ Acquired 9 matter. 02872_ Acquired 1 matter. Map ----- +----------------------------------------------------+ | ?????????????????????????????????????????????????? | | ?????????????????????????????????????????????????? | | ?????????????????????????????????????????????????? | | ?????????????????????????????????????????????????? | | ?????????????????????????????????????????????????? | | ?????????????????????????????????????????????????? | | ?????????????????????????????????????????????????? | | ?????????????????????????????????????????????????? | | ?????????????????????????????????????????????????? | | ?????????????????????????????????????????????????? | | ?????????????????????????????????????????????????? | | ?????????????????????????????????????????????????? | | ??????????????????????##?????????????????????????? | | ??????????????????????? ????????????????????????? | | ??????????????????????? ???####?????????????????? | | ???????????????????????? ### #?????????????????? | | ???????????????????????? #?????????????????? | | ????????????????????????? ##????????????????? | | ?????????????????####???? RR ##???????????????? | | ????#########????# #????# ## ##??????????? | | ???## ##???# ###### #??????????? | | ##?# ##??# #??????????? | | ### #### #???????????? | | ## ### ## ## # #### #???????????? | | ### #?# ## ## ##??????????????????? | | ####### ####### @#?##???????????????????? | | ##??# ##????# #??????????????????????? | | #??#### #????# ##?????? #?????????????? | | #?????## #????## ####? #??????????????? | | ##?????## ##???### # ##?????????????? | | ##?##### ###### # #?????????????? | | ### ## # #?????????????? | | ##?????????????? | | #??????????????? | | ## ########### #?????????????? | | ?# #??????????#### ##?????????????? | | ## #??????????????# #??????????????? | | ##?????????????? ?????????????? | | #??????????????? #????????????? | | ## #????????????????####????????????? | | ## ##????????????????????????????????? | | ## ##?????????????????????????????????? | | ##?????????????????????????????????? | | ## ## ## #?????????????????????????????? | | ?#### #?????????????????????????????? | | ??# #?????????????????????????????? | | ?## ## #?????????????????????????????? | | ## #### #?????????????????????????????? | | # ##?## #????????????????????????????? | | ## #??## #???????????????????????????? | +----------------------------------------------------+ Best States ------------- Heat Dissipation 25 Energy Generation 10 Energy Capacity 375 Matter Stores 305 Matter Capacity 400 Sight Range 16 Terrain Scan Density 10 Armor Coverage 150 Evasion (%) 44 Recoil Reduction 1 Item Schematics ----------------- None Robot Schematics ------------------ None Fabricated ------------ Nothing Alien Tech Used ----------------- None Achievements -------------- None Challenges ------------ None Game ------ Seed ZhirovMagneticSuit Manual? 0 Play Time 00:33:34 Cumulative 21.5 hours Start 2024.08.14 @ 14:46:27 End 2024.08.14 @ 19:26:59 Sessions 3 Manual Loads 0 Difficulty Rogue Special Mode None Game No. 23 Rogue 23 Adventurer 0 Explorer 0 Win Type - Total 0 Types 0/0/0/0/0/0/0/0/0 Lore% 14 Gallery% 26 Achievement% 22 Wizard Run 0 Options --------- Layout 2 ASCII 0 Keyboard 1 Movement Arrows Keybinds 0 Fullscreen 2 Font 20/SmallcapsGlow Map View 56x54 Zoom Use 0% Tactical HUD 1 Map Filters NONE Filters NONE Steam X RUN: da16c5a3-e657-400d-885d-f1ab564e2a55